bitfinex-derivatives/quotes_BNBF0:USTF0_20250424
["timestamp","ask_amount","ask_price","bid_price","bid_amount"]
[1745469296300,0.2876782,605.83,604.51,0.57887466]
[1745469296502,0.2876782,605.83,604.52,0.57887466]
[1745469296698,0.2876782,605.83,604.53,0.57887466]
[1745469297002,0.2876782,605.83,604.54,0.57887466]
[1745469297203,0.2876782,605.83,604.55,0.57887466]
[1745469297403,1.25363322,606.05,604.56,0.57887466]
[1745469297703,1.25363322,606.05,604.31,1.612]
[1745469297704,0.28763183,605.82,604.57,0.57887466]
[1745469297903,1.25363322,606.05,604.58,0.57887466]
[1745469298204,1.25363322,606.05,604.59,0.57887466]
[1745469298499,1.25363322,606.05,604.6,0.57887466]
[1745469298708,1.25363322,606.05,604.61,0.57887466]
[1745469298899,1.25363322,606.05,604.62,0.57894546]
[1745469299100,0.28763064,606.04,604.63,0.57894546]
[1745469299301,0.28763064,606.04,604.64,0.57894546]
[1745469299507,0.28763064,606.04,604.31,1.612]
[1745469299704,0.28763064,606.04,604.32,0.57888009]
[1745469299904,0.28763064,606.04,604.33,0.57888009]
[1745469300205,0.28763064,606.04,604.34,0.57888009]
[1745469300404,1.25363322,606.05,604.35,0.57888009]
[1745469300604,1.25363322,606.05,604.36,0.57888009]
[1745469300806,1.25363322,606.05,604.37,0.57888009]
[1745469301001,1.25363322,606.05,604.38,0.57888009]
[1745469301211,1.25363322,606.02,604.39,0.57888009]
[1745469301506,1.25363322,606.02,604.4,0.57888009]
[1745469301706,1.25363322,606.02,604.41,0.57888009]
[1745469301905,1.25363322,606.02,604.42,0.57888009]
[1745469302106,1.25363322,606.02,604.43,0.57888009]
[1745469302303,1.25363322,606.02,604.44,0.57888009]
[1745469302509,1.25363322,606.02,604.45,0.57888009]
[1745469302711,1.25363322,606.02,604.46,0.57888009]
[1745469302906,1.25363322,606.02,604.47,0.57888009]
[1745469303111,1.25363322,606.02,604.48,0.57888009]
[1745469303307,1.25363322,606.02,604.49,0.57888009]
[1745469303614,1.25363322,605.98,604.5,0.57888009]
[1745469303807,1.25363322,605.98,604.51,0.57888009]
[1745469304011,1.25363322,605.98,604.52,0.57888009]
[1745469304308,1.25363322,605.98,604.53,0.57888009]
[1745469304508,1.25363322,605.98,604.54,0.57888009]
[1745469304710,0.2876782,605.97,604.52,1.592]
[1745469304908,0.2876782,605.97,604.53,0.57838712]
[1745469305108,0.2876782,605.97,604.54,0.57838712]
[1745469305312,0.2876782,605.97,604.52,1.592]
[1745469305511,0.2876782,605.97,604.53,0.57828351]
[1745469305710,0.2876782,605.97,604.52,1.592]
[1745469306314,1.25363322,605.98,604.52,1.592]
[1745469306614,1.25363322,606.16,604.52,1.592]
[1745469307514,0.28767344,606.15,604.52,1.592]
[1745469309314,1.25363322,605.95,604.52,1.592]
[1745469310517,0.28768414,605.94,604.52,1.592]
[1745469311413,1.25363322,605.88,604.52,1.592]
[1745469313213,1.25363322,605.78,604.52,1.592]
[1745469313717,1.25363322,605.78,604.31,1.612]
[1745469314013,1.25363322,605.78,604.32,0.57746817]
[1745469314219,1.25363322,605.78,604.33,0.57746817]
[1745469314421,1.25363322,605.78,604.34,0.57746817]
[1745469314722,1.25363322,605.78,604.35,0.57746817]
[1745469314918,1.25363322,605.78,604.36,0.57746817]
[1745469315722,1.25363322,605.79,604.36,0.57746817]
[1745469316619,0.2877222,605.78,604.36,0.57746817]
[1745469318619,1.25363322,605.82,604.36,0.57746817]
[1745469319720,0.28771863,605.81,604.36,0.57746817]
[1745469320122,1.25363322,605.74,604.36,0.57746817]
[1745469323728,1.25363322,605.69,604.36,0.57746817]
[1745469324128,1.25363322,605.69,604.37,0.57764352]
[1745469324428,1.25363322,605.69,604.38,0.57764352]
[1745469324623,0.2877329,605.68,604.39,0.57764352]
[1745469324828,0.2877329,605.68,604.4,0.57764352]
[1745469325129,0.2877329,605.68,604.41,0.57764352]
[1745469325328,0.2877329,605.68,604.35,1.354]
[1745469325629,0.2877329,605.68,604.36,0.57766915]
[1745469325825,0.2877329,605.68,604.37,0.57766915]
[1745469326028,0.2877329,605.68,604.38,0.57766915]
[1745469326222,0.2877329,605.68,604.39,0.57766915]
[1745469326424,0.2877329,605.68,604.4,0.57766915]
[1745469326625,0.2877329,605.68,604.41,0.57766915]
[1745469326826,0.2877329,605.68,604.35,1.354]
[1745469327130,0.2877329,605.68,604.36,0.57767465]
[1745469327324,0.2877329,605.68,604.37,0.57767465]
[1745469327530,1.25363322,605.71,604.35,1.354]
[1745469327731,1.25363322,605.71,604.36,0.57772881]
[1745469327928,1.25363322,605.71,604.35,1.354]
[1745469328137,2.13291763,606.28,604.35,1.354]
[1745469328138,1.25363322,605.7,604.35,1.354]
[1745469328636,0.28776027,605.69,604.35,1.354]
[1745469329029,0.28776027,605.69,604.35,1.34221559]
[1745469329334,0.28776027,605.69,604.0,0.28776027]
[1745469329630,0.28776027,605.69,604.01,0.88154923]
[1745469329833,0.28776027,605.69,604.02,0.57766111]
[1745469330134,0.28776027,605.69,604.03,0.88154923]
[1745469330330,0.28776027,605.69,604.04,0.88154923]
[1745469330535,1.25363322,605.7,604.05,0.57766111]
[1745469330735,1.25363322,605.7,604.06,0.57766111]
[1745469331034,1.25363322,605.7,604.07,0.57766111]
[1745469331234,1.25363322,605.7,604.08,0.57766111]
[1745469331432,1.25363322,605.7,604.09,0.57766111]
[1745469331633,1.25363322,605.66,604.1,0.57766111]
[1745469331831,1.25363322,605.66,604.11,0.57766111]
[1745469332034,1.25363322,605.66,604.12,0.57766111]
[1745469332233,1.25363322,605.66,604.13,0.57766111]
[1745469332435,1.25363322,605.66,604.14,0.57766111]
[1745469332635,1.25363322,605.66,604.15,0.57766111]
[1745469332836,1.25363322,605.66,604.16,0.57766111]
[1745469333135,1.25363322,605.66,604.0,0.28779239]
[1745469333136,1.25363322,605.66,604.17,0.57766111]
[1745469333436,1.25363322,605.66,604.18,0.57766111]
[1745469333635,1.25363322,605.66,604.19,0.57766111]
[1745469333832,1.25363322,605.66,604.2,0.57766111]
[1745469334033,1.25363322,605.66,604.21,0.57766111]
[1745469334233,1.25363322,605.66,604.22,0.57766111]
[1745469334436,1.25363322,605.66,604.23,0.57766111]
[1745469334635,1.25363322,605.66,604.24,0.57766111]
[1745469334837,0.28779358,605.69,604.25,0.57766111]
[1745469335033,0.28779358,605.69,604.26,0.57766111]
[1745469335241,0.28779358,605.69,604.27,0.57766111]
[1745469335538,0.28779358,605.69,604.28,0.57766111]
[1745469335738,0.28779358,605.69,604.29,0.57766111]
[1745469335939,0.28779358,605.69,604.3,0.57766111]
[1745469336138,0.28779358,605.69,604.31,0.57766111]
[1745469336338,0.28779358,605.69,604.32,0.57766111]
[1745469336541,1.25363322,605.79,604.33,0.57766111]
[1745469336735,0.28775313,605.68,604.34,0.57766111]
[1745469336934,0.28775313,605.68,604.35,0.57764656]
[1745469337135,1.25363322,605.79,603.77,1.384]
[1745469337334,1.25363322,605.79,603.78,0.88150152]
[1745469337538,1.25363322,605.79,603.77,1.384]
[1745469337539,1.25363322,605.74,603.79,0.88150152]
[1745469337735,1.25363322,605.74,603.8,0.88150152]
[1745469337935,1.25363322,605.74,603.81,0.88150152]
[1745469338139,1.25363322,605.74,603.82,0.88150152]
[1745469338337,1.25363322,605.74,603.83,0.88150152]
[1745469338542,1.25363322,605.74,603.84,0.88150152]
[1745469338743,1.25363322,605.74,603.85,0.88150152]
[1745469338938,1.25363322,605.74,603.86,0.88150152]
[1745469339139,1.25363322,605.74,603.87,0.88150152]
[1745469339339,1.25363322,605.74,603.88,0.88150152]
[1745469339538,1.25363322,605.74,603.89,0.88150152]
[1745469339742,1.25363322,605.75,603.9,0.88150152]
[1745469339942,1.25363322,605.75,603.91,0.5776171]
[1745469340141,1.25363322,605.75,603.92,0.88150524]
[1745469340337,1.25363322,605.75,603.93,0.88150524]
[1745469340542,1.25363322,605.75,603.94,0.88150524]
[1745469340743,0.28780548,605.74,603.95,0.88150524]
[1745469340943,0.28780548,605.74,603.96,0.88150524]
[1745469341141,0.28780548,605.74,603.97,0.88150524]
[1745469341338,0.28780548,605.74,603.98,0.88150524]
[1745469341644,0.28780548,605.74,603.99,0.88149733]
[1745469341838,0.28780548,605.74,604.0,0.88149733]
[1745469342043,0.28780548,605.74,604.01,0.88149733]
[1745469342240,0.28780548,605.74,604.02,0.88149733]
[1745469342544,1.25363322,605.75,604.03,0.88149733]
[1745469342843,1.25363322,605.75,604.04,0.88149733]
[1745469343039,1.25363322,605.57,604.05,0.88149733]
[1745469343239,1.25363322,605.57,604.06,0.88149733]
[1745469343439,1.25363322,605.57,604.07,0.88149733]
[1745469343642,1.54143394,605.57,604.08,0.88149733]
[1745469343841,1.54143394,605.57,604.09,0.88149733]
[1745469344040,1.54143394,605.57,604.1,0.88149733]
[1745469344345,1.54143394,605.57,604.11,0.88149733]
[1745469344546,1.54143394,605.57,604.12,0.88149733]
[1745469344747,1.54143394,605.57,604.13,0.88149733]
[1745469344941,1.54143394,605.57,604.14,0.88149733]
[1745469345146,1.54143394,605.57,604.15,0.88149733]
[1745469345340,0.28780072,605.57,604.16,0.88149733]
[1745469345544,1.25363322,605.63,604.17,0.88149733]
[1745469345741,1.25363322,605.63,604.18,0.5776171]
[1745469345943,1.25363322,605.63,604.19,0.5776171]
[1745469346144,1.24822236,605.63,604.2,0.5776171]
[1745469346346,1.24822236,605.63,604.21,0.5776171]
[1745469346545,0.2877674,605.62,604.22,0.5776171]
[1745469346845,0.2877674,605.62,604.23,0.5776171]
[1745469347041,0.2877674,605.62,604.24,0.5776171]
[1745469347246,0.2877674,605.62,604.25,0.5776171]
[1745469347442,0.2877674,605.62,604.26,0.5776171]
[1745469347745,0.2877674,605.62,604.27,0.5776171]
[1745469347944,1.24822236,605.63,604.28,0.5776171]
[1745469348139,1.24822236,605.63,603.98,0.28776621]
[1745469348343,2.13291763,605.82,603.99,0.88184907]
[1745469348545,2.13291763,605.82,604.0,0.88184907]
[1745469348747,2.13291763,605.82,604.01,0.88189583]
[1745469349045,2.13291763,605.82,604.02,0.88189583]
[1745469349246,0.28774361,605.81,604.03,0.88189583]
[1745469349442,0.28774361,605.81,604.04,0.88189583]
[1745469349648,0.28774361,605.81,604.05,0.88190391]
[1745469349842,0.28774361,605.81,604.06,0.88190391]
[1745469350041,0.28774361,605.81,604.07,0.88190391]
[1745469350247,0.28774361,605.81,604.08,0.88190391]
[1745469350443,0.28774361,605.81,604.09,0.88190391]
[1745469350644,0.28774361,605.81,604.1,0.88190391]
[1745469350848,0.28774361,605.81,604.11,0.88190391]
[1745469351048,0.28774361,605.81,604.12,0.88190391]
[1745469351246,0.28774361,605.81,604.13,0.88189044]
[1745469351447,2.13291763,606.3,604.14,0.88189044]
[1745469351750,2.13291763,606.3,604.15,0.88189044]
[1745469351950,2.13291763,606.3,604.16,0.88189044]
[1745469352146,2.13291763,606.3,604.17,0.88189044]
[1745469352352,2.13291763,606.3,604.18,0.88189044]
[1745469352552,2.13291763,606.3,603.93,1.018]
[1745469352553,2.13291763,606.3,604.19,0.88189044]
[1745469352753,0.2876568,606.29,604.2,0.57810753]
[1745469352950,0.2876568,606.29,604.21,0.8818874]
[1745469353147,0.2876568,606.29,604.22,0.57810753]
[1745469353348,0.2876568,606.29,604.23,0.57810753]
[1745469353548,0.2876568,606.29,604.24,0.57810753]
[1745469353752,0.2876568,606.29,604.25,0.57810753]
[1745469353953,0.2876568,606.29,604.26,0.57810753]
[1745469354151,0.2876568,606.29,604.27,0.57810753]
[1745469354350,2.13291763,606.33,604.28,0.57810753]
[1745469354550,2.13291763,606.33,604.29,0.57810753]
[1745469354754,2.13291763,606.33,604.3,0.57810753]
[1745469354955,2.13291763,606.33,604.31,0.57810753]
[1745469355155,2.13291763,606.33,604.32,0.57810753]
[1745469355350,2.13291763,606.33,604.33,0.57810753]
[1745469355651,0.28763659,606.32,604.12,0.28763659]
[1745469355856,0.28763659,606.32,604.13,0.88244049]
[1745469356052,2.13291763,606.3,604.14,0.88244315]
[1745469356252,2.13291763,606.3,604.15,0.57864986]
[1745469356457,2.13291763,606.3,604.16,0.57864986]
[1745469356652,2.13291763,606.3,604.17,0.88244315]
[1745469356852,2.13291763,606.3,604.18,0.88244315]
[1745469357057,2.13291763,606.3,604.19,0.88244315]
[1745469357257,2.13291763,606.3,604.2,0.88244315]
[1745469357452,2.13291763,606.3,604.21,0.88244315]
[1745469357655,0.28765442,606.29,604.22,0.57864986]
[1745469357856,0.28765442,606.29,604.23,0.88244315]
[1745469358055,2.13291763,606.04,604.24,0.88244315]
[1745469358252,2.13291763,606.04,604.25,0.88244315]
[1745469358452,2.13291763,606.04,604.26,0.88244315]
[1745469358657,2.13291763,606.04,604.27,0.88244315]
[1745469358857,2.13291763,606.04,604.28,0.88244315]
[1745469359058,2.13291763,606.04,604.29,0.88244315]
[1745469359256,2.13291763,606.04,604.3,0.57864986]
[1745469359457,2.13291763,606.04,604.31,0.8827354]
[1745469359659,2.13291763,606.04,604.32,0.8827354]
[1745469359856,2.13291763,606.04,604.33,0.8827354]
[1745469360061,2.13291763,606.04,604.34,0.8827354]
[1745469360358,2.13291763,606.04,604.35,0.57894211]
[1745469360556,2.13291763,606.04,604.36,0.57894211]
[1745469360760,2.13291763,605.85,604.37,0.57894211]
[1745469360963,2.13291763,605.85,604.38,0.57894211]
[1745469361160,2.13291763,605.85,604.39,0.57894211]
[1745469361355,2.13291763,605.85,604.4,0.57894211]
[1745469361662,0.28768533,605.84,604.41,0.57894211]
[1745469361960,0.28768533,605.84,604.33,1.612]
[1745469361961,0.28768533,605.84,604.42,0.57894211]
[1745469362161,0.28768533,605.84,604.43,0.57894211]
[1745469362360,0.28768533,605.84,604.44,0.57894211]
[1745469362560,0.28768533,605.84,604.45,0.57894211]
[1745469362860,0.28768533,605.84,604.46,0.57894211]
[1745469363062,0.28768533,605.84,604.47,0.57894211]
[1745469363256,0.28768533,605.84,604.33,1.612]
[1745469363257,0.28768533,605.84,604.48,0.57894211]
[1745469363460,2.13291763,606.15,604.49,0.57894211]
[1745469363661,2.13291763,606.15,604.5,0.57894211]
[1745469363862,2.13291763,606.15,604.51,0.57894211]
[1745469364057,2.13291763,606.15,604.52,0.57894211]
[1745469364262,2.13291763,606.15,604.53,0.57894211]
[1745469364464,2.13291763,606.15,604.54,0.57894211]
[1745469364664,0.28763302,606.14,604.55,0.57894211]
[1745469364867,0.28763302,606.14,604.56,0.57894211]
[1745469365159,0.28763302,606.14,604.57,0.57894211]
[1745469365359,0.28763302,606.14,604.58,0.57894211]
[1745469365561,0.28763302,606.14,604.33,1.612]
[1745469365761,0.28763302,606.14,604.34,0.57864813]
[1745469365959,0.28763302,606.14,604.35,0.57864813]
[1745469366163,0.28763302,606.14,604.36,0.57864813]
[1745469366362,2.13291763,606.2,604.37,0.57864813]
[1745469366561,2.13291763,606.2,604.38,0.57864813]
[1745469366759,0.28764728,606.13,604.39,0.57864813]
[1745469366961,0.28764728,606.13,604.4,0.57864813]
[1745469367161,0.28764728,606.13,604.41,0.57864813]
[1745469367360,0.28764728,606.13,604.42,0.57864813]
[1745469367559,0.28764728,606.13,604.33,1.612]
[1745469367560,0.28764728,606.13,604.43,0.57864813]
[1745469367760,0.28764728,606.13,604.44,0.57864813]
[1745469367966,0.28764728,606.13,604.45,0.57864813]
[1745469368167,0.28764728,606.13,604.46,0.57864813]
[1745469368361,0.28764728,606.13,604.47,0.57864813]
[1745469368662,0.28764728,606.13,604.48,0.57864813]
[1745469368868,0.28764728,606.13,604.49,0.57864813]
[1745469369067,0.28764728,606.13,604.5,0.57864813]
[1745469369261,0.28764728,606.13,604.51,0.57864813]
[1745469369466,2.13291763,606.26,604.52,0.57864813]
[1745469369766,2.13291763,606.26,604.53,0.57864813]
[1745469369966,2.13291763,606.26,604.54,0.57864813]
[1745469370166,2.13291763,606.26,604.55,0.57864813]
[1745469370366,2.13291763,606.26,604.56,0.57864813]
[1745469370563,2.13291763,606.26,604.57,0.57864813]
[1745469370771,0.28761044,606.25,604.58,0.57864813]
[1745469371070,0.28761044,606.25,604.59,0.57864813]
[1745469371271,0.28761044,606.25,604.6,0.57864813]
[1745469371467,0.28761044,606.25,604.33,1.612]
[1745469371665,0.28761044,606.25,604.34,0.57835902]
[1745469371869,0.28761044,606.25,604.35,0.57835902]
[1745469372070,0.28761044,606.25,604.36,0.57835902]
[1745469372270,0.28761044,606.25,604.37,0.57835902]
[1745469372570,2.13291763,606.37,604.38,0.57835902]
[1745469372870,2.13291763,606.37,604.39,0.57835902]
[1745469373069,2.13291763,606.37,604.4,0.57835902]
[1745469373267,2.13291763,606.37,604.41,0.57835902]
[1745469373472,2.13291763,606.37,604.42,0.57835902]
[1745469373673,0.28761519,606.36,604.33,1.612]
[1745469373874,0.28761519,606.36,604.34,0.57830614]
[1745469374073,0.28761519,606.36,604.35,0.57830614]
[1745469374269,0.28761519,606.36,604.36,0.57830614]
[1745469374473,0.28761519,606.36,604.37,0.57830614]
[1745469374667,0.28761519,606.36,604.33,1.612]
[1745469374668,0.28761519,606.36,604.38,0.57830614]
[1745469374873,2.13291763,606.25,604.39,0.57830614]
[1745469375070,2.13291763,606.25,604.4,0.57830614]
[1745469375269,2.13291763,606.25,604.41,0.57830614]
[1745469375572,2.13291763,606.25,604.42,0.57830614]
[1745469375768,2.13291763,606.25,604.43,0.57830614]
[1745469376069,2.13291763,606.25,604.44,0.57830614]
[1745469376269,2.13291763,606.25,604.45,0.57830614]
[1745469376470,2.13291763,606.25,604.46,0.57830614]
[1745469376669,0.28762351,606.24,604.47,0.57830614]
[1745469376976,0.28762351,606.24,604.48,0.57830614]
[1745469377173,0.28762351,606.24,604.49,0.57830614]
[1745469377373,0.28762351,606.24,604.5,0.57830614]
[1745469377573,0.28762351,606.24,604.33,1.612]
[1745469377774,1.25782017,606.02,604.34,0.57825543]
[1745469377974,1.25782017,606.02,604.35,0.57825543]
[1745469378170,1.25782017,606.02,604.36,0.57825543]
[1745469378369,1.25782017,606.02,604.37,0.57825543]
[1745469378571,1.25782017,606.02,604.38,0.57825543]
[1745469378872,1.25782017,606.02,604.39,0.57825543]
[1745469379072,1.25782017,606.02,604.4,0.57825543]
[1745469379272,1.25782017,606.02,604.41,0.57825543]
[1745469379473,1.25782017,606.02,604.42,0.57825543]
[1745469379670,1.25782017,606.02,604.43,0.57825543]
[1745469379873,1.25782017,606.02,604.44,0.57825543]
[1745469380074,1.25782017,606.02,604.33,1.612]
[1745469380271,1.25782017,606.02,604.34,0.578269]
[1745469380470,1.25782017,606.02,604.35,0.578269]
[1745469380669,1.25782017,606.02,604.33,1.612]
[1745469380670,1.25782017,606.02,604.36,0.578269]
[1745469380869,1.25782017,606.02,604.33,1.612]
[1745469380870,1.25782017,605.9,604.37,0.578269]
[1745469381070,1.25782017,605.9,604.38,0.578269]
[1745469381375,1.25782017,605.9,604.39,0.57826876]
[1745469381575,1.25782017,605.9,604.4,0.57826876]
[1745469381771,1.25782017,605.9,604.41,0.57826876]
[1745469382075,1.25782017,605.9,604.42,0.57826876]
[1745469382373,1.25782017,605.9,604.43,0.57826876]
[1745469382574,1.25782017,605.9,604.44,0.57826876]
[1745469382776,0.28768414,605.89,604.33,1.612]
[1745469382971,0.28768414,605.89,604.34,0.57826247]
[1745469383170,0.28768414,605.89,604.35,0.57826247]
[1745469383376,1.25782017,605.78,604.36,0.57826247]
[1745469383576,1.25782017,605.78,604.37,0.57826247]
[1745469383777,1.25782017,605.78,604.38,0.57826247]
[1745469383979,1.25782017,605.78,604.39,0.57826247]
[1745469384174,1.25782017,605.78,604.4,0.57826247]
[1745469384374,1.25782017,605.78,604.41,0.57826247]
[1745469384574,1.25782017,605.78,604.33,1.612]
[1745469384772,1.25782017,605.78,604.34,0.5782836]
[1745469384973,1.25782017,605.78,604.35,0.57828275]
[1745469385177,1.25782017,605.78,604.36,0.57828275]
[1745469385476,1.25782017,605.78,604.37,0.57828275]
[1745469385672,1.25782017,605.78,604.38,0.57828275]
[1745469385876,1.25782017,605.78,604.39,0.57828275]
[1745469386176,2.13291763,606.41,604.33,1.612]
[1745469386177,1.25782017,605.73,604.4,0.57828275]
[1745469386376,1.25782017,605.73,604.41,0.57828275]
[1745469386574,1.25782017,605.73,604.42,0.57828275]
[1745469386777,1.25782017,605.73,604.43,0.57828275]
[1745469387077,1.25782017,605.73,604.33,1.612]
[1745469387078,1.25782017,605.73,604.44,0.57828275]
[1745469387273,1.25782017,605.73,604.45,0.57828275]
[1745469387477,1.25782017,605.73,604.46,0.57828275]
[1745469387680,1.25782017,605.73,604.47,0.57828275]
[1745469387977,1.25782017,605.73,604.48,0.57828275]
[1745469388178,1.25782017,605.73,604.49,0.57828275]
[1745469388477,1.25782017,605.73,604.5,0.57828275]
[1745469388675,1.25782017,605.73,604.33,1.612]
[1745469388875,0.28771031,605.72,604.34,0.57833765]
[1745469389074,0.28771031,605.72,604.35,0.57833765]
[1745469389274,0.28771031,605.72,604.33,1.612]
[1745469389275,0.28771031,605.72,604.36,0.57833765]
[1745469389474,0.28771031,605.72,604.37,0.57833765]
[1745469389674,0.28771031,605.72,604.38,0.57833765]
[1745469389981,0.28771031,605.72,604.39,0.57833765]
[1745469390177,0.28771031,605.72,604.4,0.57833765]
[1745469390376,1.25782017,605.78,604.41,0.57833765]
[1745469390574,1.25782017,605.78,604.42,0.57844785]
[1745469390777,1.25782017,605.78,604.43,0.57844785]
[1745469390976,1.25782017,605.78,604.44,0.57844785]
[1745469391178,1.25782017,605.78,604.45,0.57844785]
[1745469391376,1.25782017,605.78,604.46,0.57844785]
[1745469391575,1.25782017,605.78,604.47,0.57844785]
[1745469391778,0.28771031,605.77,604.48,0.57844785]
[1745469391980,1.25782017,605.71,604.49,0.57844785]
[1745469392181,1.25782017,605.71,604.5,0.57844785]
[1745469392382,1.25782017,605.71,604.51,0.57844785]
[1745469392583,1.25782017,605.71,604.52,0.57856549]
[1745469392783,1.25782017,605.71,604.53,0.57856549]
[1745469392984,1.25782017,605.71,604.33,1.612]
[1745469393183,1.25782017,605.71,604.34,0.57856849]
[1745469393385,1.25782017,605.71,604.35,0.57856849]
[1745469393587,1.25782017,605.71,604.36,0.57856849]
[1745469393786,1.25782017,605.71,604.37,0.57856849]
[1745469393983,1.25782017,605.71,604.38,0.57856849]
[1745469394184,1.25782017,605.71,604.39,0.57856849]
[1745469394489,1.25782017,605.71,604.4,0.57856849]
[1745469394788,0.28772577,605.7,604.41,0.57856849]
[1745469394986,0.28772577,605.7,604.42,0.57856849]
[1745469395186,0.28772577,605.7,604.43,0.57856849]
[1745469395387,0.28772577,605.7,604.44,0.57856849]
[1745469395583,0.28772577,605.7,604.33,1.612]
[1745469395584,0.28772577,605.7,604.45,0.57856849]
[1745469395788,0.28772577,605.7,604.46,0.57856849]
[1745469395987,0.28772577,605.7,604.47,0.57856849]
[1745469396188,0.28772577,605.7,604.48,0.57856849]
[1745469396388,1.25782017,605.71,604.49,0.57856849]
[1745469396589,1.25782017,605.71,604.5,0.57856849]
[1745469396783,1.25782017,605.71,604.51,0.57856849]
[1745469396982,1.25782017,605.71,604.33,1.612]
[1745469397188,1.25782017,605.71,604.34,0.57895074]
[1745469397388,1.25782017,605.71,604.35,0.57895074]
[1745469397690,0.28775313,605.7,604.36,0.57895074]
[1745469397890,0.28775313,605.7,604.37,0.57895074]
[1745469398088,0.28775313,605.7,604.38,0.57895074]
[1745469398289,0.28775313,605.7,604.39,0.57895074]
[1745469398489,0.28775313,605.7,604.4,0.57895074]
[1745469398689,0.28775313,605.7,604.41,0.57895074]
[1745469398988,0.28775313,605.7,604.42,0.57895074]
[1745469399190,0.28775313,605.7,604.43,0.57895074]
[1745469399490,1.25782017,605.71,604.44,0.57895074]
[1745469399690,1.25782017,605.71,604.45,0.57895074]
[1745469399990,1.25782017,605.71,604.46,0.5790891]
[1745469400190,1.25782017,605.71,604.47,0.57907834]
[1745469400390,1.25782017,605.71,604.33,1.612]
[1745469400588,0.28773885,605.7,604.34,0.57913089]
[1745469400787,0.28773885,605.7,604.35,0.57913089]
[1745469400991,0.28773885,605.7,604.36,0.57913089]
[1745469401189,0.28773885,605.7,604.37,0.57913089]
[1745469401490,0.28773885,605.7,604.38,0.57913089]
[1745469401689,0.28773885,605.7,604.39,0.57913089]
[1745469401885,0.28773885,605.7,604.4,0.57913089]
[1745469402086,0.28773885,605.7,604.41,0.57913089]
[1745469402386,1.25782017,605.88,604.42,0.57913089]
[1745469402690,1.25782017,605.88,604.33,1.612]
[1745469402890,1.25782017,605.88,604.34,0.57922234]
[1745469403090,1.25782017,605.88,604.35,0.57922234]
[1745469403390,1.25782017,605.88,604.36,0.57922234]
[1745469403587,0.28774123,605.87,604.37,0.57922234]
[1745469403891,0.28774123,605.87,604.38,0.57922234]
[1745469404191,0.28774123,605.87,604.33,1.612]
[1745469404192,1.25782017,605.86,604.33,1.612]
[1745469404487,1.25782017,605.86,604.34,0.57923911]
[1745469404690,1.25782017,605.86,604.35,0.57923911]
[1745469404890,1.25782017,605.86,604.36,0.57923911]
[1745469405091,1.25782017,605.86,604.37,0.57923911]
[1745469405289,1.25782017,605.86,604.38,0.57923911]
[1745469405489,1.25782017,605.86,604.39,0.57923911]
[1745469405687,1.25782017,605.86,604.33,1.612]
[1745469405888,1.25782017,605.86,604.34,0.57909841]
[1745469406088,1.25782017,605.86,604.35,0.57909841]
[1745469406288,1.25782017,605.86,604.36,0.57909841]
[1745469406488,1.25782017,605.86,604.37,0.57909841]
[1745469406688,0.28774361,605.85,604.33,1.612]
[1745469406991,0.28774361,605.85,604.34,0.57904272]
[1745469407290,0.28774361,605.85,604.35,0.57904272]
[1745469407490,0.28774361,605.85,604.36,0.57904272]
[1745469407692,0.28774361,605.85,604.37,0.57904272]
[1745469407993,0.28774361,605.85,604.38,0.57904272]
[1745469407994,1.25782017,605.79,604.38,0.57904272]
[1745469408192,1.25782017,605.79,604.39,0.57904272]
[1745469408392,1.25782017,605.79,604.33,1.612]
[1745469408694,1.25782017,605.79,604.34,0.57885798]
[1745469408893,1.25782017,605.79,604.35,0.57885798]
[1745469409193,1.25782017,605.79,604.36,0.57885798]
[1745469409393,1.25782017,605.79,604.37,0.57885798]
[1745469409595,1.25782017,605.79,604.38,0.57885798]
[1745469409790,0.28775075,605.78,604.33,1.612]
[1745469410090,0.28775075,605.78,604.34,0.57878128]
[1745469410289,0.28775075,605.78,604.35,0.57878128]
[1745469410495,0.28775075,605.78,604.36,0.57876692]
[1745469410790,0.28775075,605.78,604.37,0.57876692]
[1745469410993,0.28775075,605.78,604.38,0.57876692]
[1745469411189,0.28775075,605.78,604.33,1.612]
[1745469411392,1.25782017,605.79,604.34,0.57870044]
[1745469411593,1.25782017,605.79,604.35,0.57870044]
[1745469411794,1.25782017,605.79,604.36,0.57870044]
[1745469412094,1.25782017,605.79,604.37,0.57870044]
[1745469412296,1.25782017,605.79,604.07,1.635]
[1745469412489,1.25782017,605.79,604.08,0.57864252]
[1745469412689,0.28778525,605.78,604.09,0.57864252]
[1745469412892,0.28778525,605.78,604.1,0.57864252]
[1745469413095,0.28778525,605.78,604.11,0.57864252]
[1745469413294,0.28778525,605.78,604.12,0.57864252]
[1745469413494,0.28778525,605.78,604.13,0.57864252]
[1745469413495,1.25782017,605.76,604.13,0.57864252]
[1745469413696,1.25782017,605.76,604.14,0.57864252]
[1745469413895,1.25782017,605.76,604.15,0.57864252]
[1745469414191,1.25782017,605.76,604.16,0.57864252]
[1745469414395,1.25782017,605.76,604.17,0.57864252]
[1745469414695,1.25782017,605.76,604.18,0.57864252]
[1745469414995,1.25782017,605.76,604.19,0.57864252]